fUSD/lending_fUSD_20250226
["ID","MTS","AMOUNT","RATE_DAILY","PERIOD"]
[354584409,1740581457499,-500.0,0.0003863,14]
[354584410,1740581457509,-500.0,0.0003863,14]
[354584411,1740581457519,-500.0,0.0003863,14]
[354584412,1740581457870,-531.21,0.0003863,14]
[354584413,1740581457883,-546.07564109,0.0003863,14]
[354584414,1740581457893,-581.66,0.0003863,14]
[354584415,1740581457903,-500.0,0.0003863,14]
[354584416,1740581457912,-1849.61,0.0003863,14]
[354584417,1740581457921,-1403.57,0.0003863,14]
[354584418,1740581457932,-500.0,0.0003863,14]
[354584419,1740581457942,-1010.65,0.0003863,14]
[354584420,1740581457951,-1645.33,0.0003863,14]
[354584421,1740581457961,-507.00001725,0.0003863,14]
[354584422,1740581457972,-581.62,0.0003863,14]
[354584423,1740581457983,-1983.47,0.0003863,14]
[354584424,1740581457992,-565.43805478,0.0003863,14]
[354584425,1740581458002,-500.0,0.0003863,14]
[354584426,1740581458012,-822.58,0.0003863,14]
[354584427,1740581458022,-712.0,0.0003863,14]
[354584428,1740581458032,-2176.11,0.0003863,14]
[354584429,1740581458041,-596.63,0.0003863,14]
[354584430,1740581458051,-1367.79,0.0003863,14]
[354584431,1740581458061,-500.0,0.0003863,14]
[354584432,1740581458070,-500.0,0.0003863,14]
[354584433,1740581458079,-500.0,0.0003863,14]
[354584434,1740581458089,-500.0,0.0003863,14]
[354584435,1740581458098,-500.0,0.0003863,14]
[354584436,1740581458108,-978.71,0.0003863,14]
[354584437,1740581458118,-500.0,0.0003863,14]
[354584438,1740581458127,-724.13,0.0003863,14]
[354584439,1740581458136,-500.0,0.0003863,14]
[354584440,1740581458145,-500.0,0.0003863,14]
[354584441,1740581458155,-1863.44,0.0003863,14]
[354584442,1740581458164,-2032.26,0.0003863,14]
[354584443,1740581458174,-1202.11,0.0003863,14]
[354584444,1740581458183,-821.37,0.0003863,14]
[354584445,1740581458192,-1029.21,0.0003863,14]
[354584446,1740581458202,-1546.36,0.0003863,14]
[354584447,1740581458211,-598.54,0.0003863,14]
[354584448,1740581458221,-500.0,0.0003863,14]
[354584449,1740581458230,-1341.9,0.0003863,14]
[354584450,1740581458239,-1534.41,0.0003863,14]
[354584451,1740581458249,-584.51,0.0003863,14]
[354584452,1740581458258,-500.0,0.0003863,14]
[354584453,1740581458267,-500.0,0.0003863,14]
[354584454,1740581458276,-3219.9,0.0003863,14]
[354584455,1740581458286,-500.0,0.0003863,14]
[354584456,1740581458295,-698.05,0.0003863,14]
[354584457,1740581458304,-2303.26,0.0003863,14]
[354584458,1740581458313,-943.81,0.0003863,14]
[354584459,1740581458323,-632.56,0.0003863,2]
[354584460,1740581458332,-503.19,0.0003863,14]
[354584461,1740581458342,-500.0,0.0003863,14]
[354584462,1740581458351,-500.0,0.0003863,14]
[354584463,1740581458365,-500.0,0.0003863,14]
[354584464,1740581458375,-1614.59,0.0003863,14]
[354584465,1740581458385,-943.78,0.0003863,14]
[354584466,1740581458395,-1289.53,0.0003863,14]
[354584467,1740581458405,-2623.9,0.0003863,14]
[354584468,1740581458415,-500.0,0.0003863,14]
[354584469,1740581458426,-500.0,0.0003863,14]
[354584470,1740581458438,-2995.39,0.0003863,14]
[354584471,1740581458448,-500.0,0.0003863,14]
[354584472,1740581458458,-996.38,0.0003863,14]
[354584473,1740581458467,-694.98,0.0003863,14]
[354584474,1740581458477,-1538.21,0.0003863,14]
[354584475,1740581458487,-1666.33,0.0003863,14]
[354584476,1740581458497,-1140.59,0.0003863,14]
[354584477,1740581458507,-500.0,0.0003863,14]
[354584478,1740581458516,-1778.73,0.0003863,14]
[354584479,1740581458526,-628.05,0.0003863,14]
[354584480,1740581458536,-1096.05,0.0003863,14]
[354584481,1740581458545,-500.0,0.0003863,14]
[354584482,1740581458555,-500.0,0.0003863,14]
[354584483,1740581458565,-1332.74,0.0003863,14]
[354584484,1740581458575,-5137.44,0.0003863,14]
[354584485,1740581458584,-2815.58,0.0003863,14]
[354584486,1740581458594,-1220.99,0.0003863,14]
[354584487,1740581458603,-502.32,0.0003863,14]
[354584488,1740581458615,-1295.02,0.0003863,14]
[354584489,1740581458624,-500.0,0.0003863,14]
[354584490,1740581458634,-866.93,0.0003863,14]
[354584491,1740581458644,-442.55330852,0.0003863,14]
[354584492,1740581458654,-567.4,0.0003863,14]
[354584493,1740581458664,-1773.04,0.0003863,14]
[354584494,1740581458674,-528.99645323,0.0003863,14]
[354584495,1740581458683,-500.0,0.0003863,14]
[354584496,1740581458692,-1448.67,0.0003863,14]
[354584497,1740581458701,-1983.98,0.0003863,14]
[354584498,1740581458711,-12140.26,0.0003863,14]
[354584499,1740581458720,-500.0,0.0003863,14]
[354584500,1740581458729,-158.96985337,0.0003863,14]
[354584501,1740581458739,-500.0,0.0003863,14]
[354584502,1740581458748,-1081.68,0.0003863,14]
[354584503,1740581458758,-509.80018505,0.0003863,14]
[354584504,1740581458768,-1916.43,0.0003863,14]
[354584505,1740581458777,-2344.09,0.0003863,14]
[354584506,1740581458787,-500.0,0.0003863,14]
[354584507,1740581458796,-500.0,0.0003863,14]
[354584508,1740581458806,-500.0,0.0003863,14]
[354584509,1740581458815,-553.13,0.0003863,14]
[354584510,1740581458824,-6399.94,0.0003863,14]
[354584511,1740581458834,-1738.48,0.0003863,14]
[354584512,1740581458843,-833.79,0.0003863,14]
[354584513,1740581458852,-644.27,0.0003863,14]
[354584514,1740581458862,-855.86,0.0003863,14]
[354584515,1740581458872,-674.97,0.0003863,14]
[354584516,1740581458881,-1540.31,0.0003863,14]
[354584517,1740581458891,-2003.09,0.0003863,14]
[354584518,1740581458900,-2838.65,0.0003863,14]
[354584519,1740581458910,-500.0,0.0003863,14]
[354584520,1740581458920,-500.0,0.0003863,14]
[354584521,1740581458930,-797.1,0.0003863,14]
[354584522,1740581458939,-650.1,0.0003863,14]
[354584523,1740581458949,-500.0,0.0003863,14]
[354584524,1740581458961,-711.09,0.0003863,14]
[354584525,1740581458972,-500.0,0.0003863,14]
[354584526,1740581458982,-2858.48,0.0003863,14]
[354584527,1740581458991,-500.0,0.0003863,14]
[354584528,1740581459001,-1471.03,0.0003863,14]
[354584529,1740581459011,-568.14,0.0003863,14]
[354584530,1740581459021,-500.0,0.0003863,14]
[354584531,1740581459031,-2544.53,0.0003863,14]
[354584532,1740581459042,-797.72,0.0003863,14]
[354584533,1740581459052,-547.94,0.0003863,14]
[354584534,1740581459063,-2297.41,0.0003863,14]
[354584535,1740581459073,-501.38,0.0003863,14]
[354584536,1740581459082,-664.2,0.0003863,14]
[354584537,1740581459092,-2259.06,0.0003863,14]
[354584538,1740581459102,-3394.65,0.0003863,14]
[354584539,1740581459112,-500.0,0.0003863,14]
[354584540,1740581459122,-3071.51,0.0003863,14]
[354584541,1740581459132,-500.0,0.0003863,14]
[354584542,1740581459142,-2257.4,0.0003863,14]
[354584543,1740581459151,-2972.72,0.0003863,14]
[354584544,1740581459161,-500.0,0.0003863,14]
[354584545,1740581459171,-977.8,0.0003863,14]
[354584546,1740581459181,-500.0,0.0003863,14]
[354584547,1740581459191,-500.0,0.0003863,14]
[354584548,1740581459201,-1479.63,0.0003863,14]
[354584549,1740581459211,-500.0,0.0003863,14]
[354584550,1740581459222,-606.32,0.0003863,14]
[354584551,1740581459232,-5539.75,0.0003863,14]
[354584552,1740581459243,-632.9,0.0003863,14]
[354584553,1740581459254,-500.0,0.0003863,14]
[354584554,1740581459264,-1732.06,0.0003863,14]
[354584555,1740581459274,-1360.89,0.0003863,14]
[354584556,1740581459284,-502.91,0.0003863,14]
[354584557,1740581459294,-431.55360198,0.0003863,14]
[354584558,1740581459304,-500.0,0.0003863,14]
[354584559,1740581459314,-2922.46,0.0003863,14]
[354584560,1740581459324,-3213.6,0.0003863,14]
[354584561,1740581459334,-6153.95,0.0003863,14]
[354584562,1740581459343,-500.0,0.0003863,14]
[354584563,1740581459353,-718.06,0.0003863,14]
[354584564,1740581459367,-200.0,0.0003863,7]
[354584565,1740581459376,-2807.52,0.0003863,14]
[354584566,1740581459385,-1016.59,0.0003863,14]
[354584567,1740581459395,-3164.61,0.0003863,14]
[354584568,1740581459405,-1222.45,0.0003863,14]
[354584569,1740581459415,-500.0,0.0003863,14]
[354584570,1740581459424,-500.0,0.0003863,14]
[354584571,1740581459434,-730.8,0.0003863,14]
[354584572,1740581459443,-2793.02,0.0003863,14]
[354584573,1740581459453,-4576.22,0.0003863,14]
[354584574,1740581459463,-691.57,0.0003863,14]
[354584575,1740581459472,-500.0,0.0003863,14]
[354584576,1740581459482,-1150.75,0.0003863,14]
[354584577,1740581459491,-1994.73,0.0003863,14]
[354584578,1740581459501,-7742.19,0.0003863,14]
[354584579,1740581459510,-287.92107377,0.0003863,14]
[354584580,1740581459521,-500.0,0.0003863,14]
[354584581,1740581459530,-1516.87,0.0003863,14]
[354584582,1740581459540,-9561.14,0.0003863,14]
[354584583,1740581459549,-1317.91,0.0003863,14]
[354584584,1740581459559,-500.0,0.0003863,14]
[354584585,1740581459569,-760.9,0.0003863,14]
[354584586,1740581459579,-3698.49,0.0003863,14]
[354584587,1740581459594,-418.49754807,0.0003863,14]
[354584588,1740581459608,-500.0,0.0003863,14]
[354584589,1740581459619,-526.2753987,0.0003863,14]
[354584590,1740581459628,-740.96,0.0003863,7]
[354584591,1740581459638,-583.85,0.0003863,14]
[354584592,1740581459648,-500.0,0.0003863,14]
[354584593,1740581459659,-609.45,0.0003863,14]
[354584594,1740581459671,-500.0,0.0003863,7]
[354584595,1740581459681,-611.23,0.0003863,14]
[354584596,1740581459690,-500.0,0.0003863,14]
[354584597,1740581459700,-715.59,0.0003863,14]
[354584598,1740581459710,-500.0,0.0003863,14]
[354584599,1740581459723,-11685.47,0.0003863,14]
[354584600,1740581459734,-500.0,0.0003863,14]
[354584601,1740581459745,-500.0,0.0003863,14]
[354584602,1740581459755,-6759.73,0.0003863,14]
[354584603,1740581459765,-783.64,0.0003863,14]
[354584604,1740581459775,-1529.17,0.0003863,14]
[354584605,1740581459785,-912.82,0.0003863,14]
[354584606,1740581459795,-500.0,0.0003863,14]
[354584607,1740581459804,-882.63,0.0003863,14]
[354584608,1740581459815,-508.9574144,0.0003863,14]
[354584609,1740581459824,-748.98,0.0003863,14]
[354584610,1740581459834,-1312.93,0.0003863,14]
[354584611,1740581459844,-3295.48,0.0003863,14]
[354584612,1740581459854,-2982.08,0.0003863,14]
[354584613,1740581459866,-648.88,0.0003863,14]
[354584614,1740581459876,-500.0,0.0003863,14]
[354584615,1740581459886,-769.84,0.0003863,14]
[354584616,1740581459896,-674.87,0.0003863,14]
[354584617,1740581459906,-622.19,0.0003863,14]
[354584618,1740581459915,-3155.07,0.0003863,14]
[354584619,1740581459926,-1608.23,0.0003863,14]
[354584620,1740581459936,-1758.59,0.0003863,14]
[354584621,1740581459946,-4211.6,0.0003863,14]
[354584622,1740581459956,-448.99576791,0.0003863,14]
[354584623,1740581459966,-555.94,0.0003863,14]
[354584624,1740581459980,-3097.22,0.0003863,14]
[354584625,1740581459992,-953.13,0.0003863,14]
[354584626,1740581460002,-1552.94,0.0003863,14]
[354584627,1740581460013,-659.87,0.0003863,14]
[354584628,1740581460029,-507.09,0.0003863,14]
[354584629,1740581460039,-9085.8,0.0003863,14]
[354584630,1740581460050,-502.93201453,0.0003863,14]
[354584631,1740581460060,-1719.68,0.0003863,14]
[354584632,1740581460071,-1711.95,0.0003863,14]
[354584633,1740581460082,-500.0,0.0003863,14]
[354584634,1740581460091,-623.72,0.0003863,14]
[354584635,1740581460102,-500.0,0.0003863,14]
[354584636,1740581460113,-500.0,0.0003863,14]
[354584637,1740581460123,-1209.09,0.0003863,14]
[354584638,1740581460132,-2978.79,0.0003863,14]
[354584639,1740581460142,-500.0,0.0003863,14]
[354584640,1740581460152,-2911.23,0.0003863,14]
[354584641,1740581460162,-1808.56,0.0003863,14]
[354584642,1740581460172,-508.03856528,0.0003863,14]
[354584643,1740581460182,-509.43978018,0.0003863,14]
[354584644,1740581460192,-500.0,0.0003863,14]
[354584645,1740581460201,-1055.59,0.0003863,14]
[354584646,1740581460212,-391.36022042,0.0003863,14]
[354584647,1740581460221,-652.42,0.0003863,14]
[354584648,1740581460232,-548.71,0.0003863,14]
[354584649,1740581460242,-2874.43,0.0003863,14]
[354584650,1740581460252,-1114.41,0.0003863,14]
[354584651,1740581460262,-3762.67,0.0003863,14]
[354584652,1740581460272,-4005.0,0.0003863,14]
[354584653,1740581460386,-2520.82,0.0003863,14]
[354584654,1740581460399,-534.22,0.0003863,14]
[354584655,1740581460410,-721.0,0.0003863,14]
[354584656,1740581460421,-1330.84,0.0003863,14]
[354584657,1740581460432,-500.0,0.0003863,14]
[354584658,1740581460442,-530.37881878,0.0003863,14]
[354584659,1740581460453,-1983.78,0.0003863,14]
[354584660,1740581460463,-2768.89,0.0003863,14]
[354584661,1740581460473,-9588.38,0.0003863,14]
[354584662,1740581460483,-1690.77,0.0003863,14]
[354584663,1740581460493,-714.95,0.0003863,14]
[354584664,1740581460503,-581.54,0.0003863,14]
[354584665,1740581460513,-550.59,0.0003863,14]
[354584666,1740581460523,-1563.23,0.0003863,14]
[354584667,1740581460533,-500.0,0.0003863,14]
[354584668,1740581460543,-1402.76,0.0003863,14]
[354584669,1740581460552,-500.0,0.0003863,14]
[354584670,1740581460562,-500.0,0.0003863,14]
[354584671,1740581460571,-741.55,0.0003863,14]
[354584672,1740581460581,-2069.87,0.0003863,14]
[354584673,1740581460591,-1625.96,0.0003863,14]
[354584674,1740581460600,-829.49,0.0003863,14]
[354584675,1740581460613,-423.69326434,0.0003863,2]
[354584676,1740581460623,-2744.56,0.0003863,14]
[354584677,1740581460632,-1063.88,0.0003863,14]
[354584678,1740581460642,-500.0,0.0003863,14]
[354584679,1740581460652,-1737.84,0.0003863,14]
[354584680,1740581460662,-3138.87,0.0003863,14]
[354584681,1740581460671,-1413.33,0.0003863,14]
[354584682,1740581460680,-1273.31,0.0003863,14]
[354584683,1740581460690,-1358.3,0.0003863,14]
[354584684,1740581460700,-999.88,0.0003863,14]
[354584685,1740581460710,-373.0,0.0003863,14]
[354584686,1740581460719,-712.83,0.00038631,2]
[354584687,1740581460730,-500.0,0.00038673,5]
[354584688,1740581460740,-150.0,0.00038756,2]
[354584689,1740581460751,-1479.18,0.00038773,14]
[354584690,1740581460760,-500.0,0.00038773,14]
[354584691,1740581460770,-500.0,0.00038773,14]
[354584692,1740581460779,-150.0,0.00038847,2]
[354584693,1740581460788,-150.0,0.00038852,2]
[354584694,1740581460800,-916.95,0.00038898,14]
[354584695,1740581460822,-500.0,0.00038899,14]
[354584696,1740581460831,-313.70136595,0.00038899,14]
[354584697,1740581460840,-500.0,0.00038899,14]
[354584698,1740581460850,-500.0,0.00038899,14]
[354584699,1740581460863,-1951.17,0.00038899,14]
[354584700,1740581460872,-506.87,0.00038899,14]
[354584701,1740581460882,-500.0,0.00038899,14]
[354584702,1740581460892,-842.08,0.00038899,14]
[354584703,1740581460902,-872.17,0.00038899,14]
[354584704,1740581460911,-500.0,0.00038899,14]
[354584705,1740581460920,-1342.82,0.00038899,14]
[354584706,1740581460930,-1619.06,0.00038899,14]
[354584707,1740581460939,-1724.72,0.00038899,14]
[354584708,1740581460953,-500.0,0.00038899,14]
[354584709,1740581460966,-1483.41,0.00038899,14]
[354584710,1740581460976,-500.0,0.00038899,14]
[354584711,1740581460985,-500.0,0.00038899,14]
[354584712,1740581460994,-500.0,0.00038899,14]
[354584713,1740581461004,-1020.25,0.00038899,14]
[354584714,1740581461013,-946.87,0.00038899,14]
[354584715,1740581461023,-500.0,0.00038899,14]
[354584716,1740581461032,-1062.77,0.00038899,14]
[354584717,1740581461043,-500.0,0.00038899,14]
[354584718,1740581461053,-928.89,0.00038899,14]
[354584719,1740581461062,-951.21,0.00038899,14]
[354584720,1740581461071,-1450.07,0.00038899,14]
[354584721,1740581461081,-500.0,0.00038899,14]
[354584722,1740581461090,-500.0,0.00038899,14]
[354584723,1740581461103,-1924.76,0.00038899,14]
[354584724,1740581461114,-1332.36,0.00038899,14]
[354584725,1740581461128,-1495.11,0.00038899,14]
[354584726,1740581461139,-500.0,0.00038899,14]
[354584727,1740581461148,-2133.11,0.00038899,14]
[354584728,1740581461158,-1097.09,0.00038899,14]
[354584729,1740581461168,-3727.41,0.00038899,14]
[354584730,1740581461177,-1389.63,0.00038899,14]
[354584731,1740581461187,-2437.92,0.00038899,14]
[354584732,1740581461196,-1543.52,0.00038899,14]
[354584733,1740581461206,-1077.06,0.00038899,14]
[354584734,1740581461216,-1011.66,0.00038899,14]
[354584735,1740581461225,-2813.58,0.00038899,14]
[354584736,1740581461235,-1735.9,0.00038899,14]
[354584737,1740581461244,-600.03,0.00038899,14]
[354584738,1740581461253,-1136.06,0.00038899,14]
[354584739,1740581461262,-3380.89,0.00038899,14]
[354584740,1740581461272,-1483.52,0.00038899,14]
[354584741,1740581461281,-1167.33,0.00038899,14]
[354584742,1740581461290,-611.77,0.00038899,14]
[354584743,1740581461300,-1339.85,0.00038899,14]
[354584744,1740581461309,-500.0,0.00038899,14]
[354584745,1740581461318,-580.54,0.00038899,14]
[354584746,1740581461327,-500.0,0.00038899,14]
[354584747,1740581461336,-1419.06,0.00038899,14]
[354584748,1740581461346,-7657.90872059,0.00038899,24]
[354584749,1740581461802,-1174.93864675,0.00038899,24]
[354584750,1740581461962,-1238.99,0.00038625,14]
[354584751,1740581461975,-500.0,0.0003863,14]
[354584752,1740581461986,-73458.15495957,0.00038899,24]
[354584753,1740581461997,-499.13643713,0.00038899,24]
[354584754,1740581462008,-1427.08938881,0.00038899,24]
[354584755,1740581462357,-520.0,0.00014925,2]
[354584756,1740581462371,-152.3,0.00038356,14]
[354584757,1740581462383,-347.7,0.00038356,14]
[354584758,1740581462392,-1238.99,0.00038899,14]
[354584759,1740581462402,-32339.37135688,0.00038899,24]
[354584760,1740581462415,-1947.76829127,0.00038899,24]
[354584761,1740581462427,-1307.98034678,0.00038899,24]
[354584762,1740581462438,-11390.73387604,0.00038899,24]
[354584763,1740581462450,-729.99334585,0.00038899,24]
[354584764,1740581462461,-823.40723853,0.00038899,24]
[354584765,1740581462472,-2086.813,0.00038899,24]
[354584766,1740581462498,-868.6069322,0.00038899,24]
[354584767,1740581462510,-434.63359168,0.00038899,24]
[354584768,1740581462520,-1900.66909915,0.00038899,24]
[354584769,1740581462531,-1130.0,0.00038899,24]
[354584770,1740581462541,-739.34634792,0.00038899,24]
[354584771,1740581462560,-18295.89435052,0.00038899,24]
[354584772,1740581462571,-355.64993399,0.00038899,24]
[354584814,1740582632299,-150.0,0.000165,2]
[354584815,1740582632309,-150.0,0.00016817,2]
[354584816,1740582632320,-250.0,0.00016817,2]
[354584817,1740582632331,-250.0,0.00017185,2]
[354584818,1740582632341,-150.0,0.00017334,2]
[354584819,1740582632351,-250.0,0.00017334,2]
[354584820,1740582632361,-373.15998306,0.00017335,2]
[354584821,1740582632371,-2082.0,0.000174,2]
[354584822,1740582632383,-1105.04616171,0.00017769,2]
[354584823,1740582632392,-613.01451466,0.0001777,2]
[354584824,1740582632406,-1105.04616169,0.0001777,2]
[354584825,1740582632416,-550.0,0.00017869,2]
[354584826,1740582632426,-28151.73317888,0.0001787,2]
[354584827,1740582632528,-1860.60997186,0.0001787,2]
[354584828,1740582632540,-6512.5166234,0.0001787,2]
[354584829,1740582632552,-3282.33897135,0.0001787,2]
[354584830,1740582632564,-19389.89734591,0.0001787,2]
[354584831,1740582632573,-107.24971856,0.0001787,2]
[354584832,1740582632586,-243.05887251,0.0001787,2]
[354584833,1740582632596,-503.39397737,0.000179,2]
[354584834,1740582632606,-150.0,0.00018227,2]
[354584835,1740582632616,-250.0,0.00018227,2]
[354584836,1740582632625,-155.0,0.00018959,2]
[354584837,1740582632635,-3888.71,0.00020531,2]
[354584838,1740582632645,-200.362,0.00020531,2]
[354584839,1740582632656,-250.0,0.00021,2]
[354584840,1740582632666,-202.06,0.00021918,2]
[354584841,1740582632676,-250.0,0.00022834,2]
[354584842,1740582632686,-300.0,0.00023,2]
[354584843,1740582632696,-11397.01533847,0.00023544,2]
[354584844,1740582632706,-225.26862852,0.000249,4]
[354584845,1740582632715,-225.26862847,0.000249,4]
[354584846,1740582632725,-350.0,0.00025,2]
[354584847,1740582632734,-372.67036856,0.00025052,2]
[354584848,1740582632744,-4923.121,0.00026986,10]
[354584849,1740582632754,-400.0,0.00027,2]
[354584850,1740582632767,-225.26862847,0.00027233,4]
[354584851,1740582632777,-5424.49048813,0.00028361,2]
[354584853,1740582632920,-757.10016988,0.00028361,2]
[354584855,1740582632932,-284.169996,0.00028361,2]
[354584858,1740582632943,-1842.72328551,0.00028361,2]
[354584860,1740582632954,-320.29041264,0.00028361,2]
[354584862,1740582632967,-300.63979431,0.00028361,2]
[354584864,1740582632978,-815.44624077,0.00028361,2]
[354584866,1740582632988,-450.0,0.00029,2]
[354584867,1740582632997,-150.0,0.00029215,2]
[354584868,1740582633007,-314.55,0.00029679,2]
[354584869,1740582633019,-200.0,0.00029689,2]
[354584871,1740582633028,-177.53,0.00029702,2]
[354584873,1740582633038,-306.57,0.00030027,2]
[354584875,1740582633047,-2032.45985854,0.00030384,10]
[354584953,1740582638113,-1209.13054146,0.00030384,10]
[354584955,1740582638125,-300.0,0.000304,2]
[354584956,1740582638137,-500.0,0.00031,2]
[354584958,1740582638147,-500.0,0.00031,2]
[354584959,1740582638158,-225.26862847,0.000314,6]
[354584960,1740582638169,-5521.0,0.000315,5]
[354584961,1740582638179,-200.0,0.00032,30]
[354584962,1740582638190,-263.95,0.000324,2]
[354584963,1740582638201,-455.59,0.00032609,2]
[354584964,1740582638212,-550.0,0.00033,2]
[354584965,1740582638223,-1000.0,0.00033381,2]
[354584966,1740582638233,-724.05915205,0.0003437,2]
[354584967,1740582638495,-643.15,0.00034146,2]
[354584968,1740582638506,-266.89997864,0.0003437,2]
[354584969,1740582638520,-2545.50539138,0.0003437,2]
[354584970,1740582638530,-1638.65078962,0.00034523,120]
[354584971,1740582638542,-361.34921038,0.00034523,120]
[354584972,1740582638551,-245.22,0.00034523,2]
[354584973,1740582638561,-898.36585464,0.00034802,120]
[354584974,1740582638573,-9686.05414536,0.00034802,120]
[354584975,1740582638583,-847.44,0.0003481,120]
[354584976,1740582638592,-23900.0,0.0003481,2]
[354584977,1740582638602,-250.0,0.00034845,2]
[354584978,1740582638612,-455.59,0.00034873,2]
[354584979,1740582638622,-200.0,0.00034904,2]
[354584980,1740582638632,-5514.37684468,0.00034984,2]
[354584981,1740582638642,-10000.0,0.00035,2]
[354584982,1740582638652,-2000.0,0.00035084,120]
[354584983,1740582638662,-768.55,0.00035379,2]
[354584984,1740582638671,-5514.37684464,0.00035386,2]
[354584985,1740582638681,-163.9,0.00035518,2]
[354584986,1740582638690,-225.26862847,0.00035567,7]
[354584988,1740582638699,-461.72,0.00035602,2]
[354584990,1740582638709,-2833.6390965,0.00035606,3]
[354584991,1740582638720,-169.76,0.00035615,120]
[354584993,1740582638729,-1169.27,0.00035616,14]
[354584995,1740582638738,-500.0,0.00035616,14]
[354584997,1740582638748,-1663.45,0.00035616,14]
[354585000,1740582638758,-1501.38,0.00035616,14]
[354585001,1740582638771,-370.89607988,0.00035616,14]
[354585003,1740582638780,-500.0,0.00035616,14]
[354585005,1740582638789,-500.0,0.00035616,14]
[354585007,1740582638799,-500.0,0.00035616,14]
[354585009,1740582638808,-500.0,0.00035616,14]
[354585011,1740582638817,-500.0,0.00035616,14]
[354585014,1740582638826,-338.82657338,0.00035616,14]
[354585017,1740582638836,-974.09,0.00035616,14]
[354585020,1740582638845,-500.0,0.00035616,14]
[354585023,1740582638854,-500.0,0.00035616,14]
[354585026,1740582638864,-1504.23,0.00035616,14]
[354585029,1740582638873,-501.28483582,0.00035616,14]
[354585032,1740582638883,-1458.79,0.00035616,14]
[354585035,1740582638892,-650.52,0.00035616,14]
[354585038,1740582638901,-515.66934798,0.00035616,14]
[354585040,1740582638910,-1911.02,0.00035616,14]
[354585044,1740582638921,-500.0,0.00035616,14]
[354585047,1740582638930,-500.0,0.00035616,14]
[354585049,1740582638941,-500.0,0.00035616,14]
[354585051,1740582638950,-500.0,0.00035616,14]
[354585053,1740582638960,-500.0,0.00035616,14]
[354585055,1740582638969,-1289.74,0.00035616,14]
[354585057,1740582638978,-504.20457054,0.00035616,14]
[354585059,1740582638987,-2939.03,0.00035616,14]
[354585060,1740582638997,-664.91,0.00035616,14]
[354585062,1740582639007,-517.37880828,0.00035616,14]
[354585064,1740582639017,-500.0,0.00035616,14]
[354585066,1740582639026,-500.0,0.00035616,14]
[354585076,1740582639107,-1357.14,0.00035616,14]
[354585078,1740582639116,-1256.09,0.00035616,14]
[354585080,1740582639128,-500.0,0.00035616,14]
[354585082,1740582639137,-973.54,0.00035616,14]
[354585084,1740582639147,-500.0,0.00035616,14]
[354585085,1740582639156,-1912.38,0.00035616,14]
[354585086,1740582639166,-984.81,0.00035616,14]
[354585087,1740582639176,-500.0,0.00035616,14]
[354585088,1740582639185,-500.31070177,0.00035616,14]
[354585089,1740582639195,-909.63,0.00035616,14]
[354585090,1740582639204,-500.0,0.00035616,14]
[354585091,1740582639214,-1337.6,0.00035616,14]
[354585092,1740582639223,-500.0,0.00035616,14]
[354585093,1740582639232,-728.94,0.00035616,14]
[354585094,1740582639241,-878.41,0.00035616,14]
[354585095,1740582639250,-500.0,0.00035616,14]
[354585096,1740582639259,-500.0,0.00035616,14]
[354585097,1740582639271,-544.85,0.00035616,14]